[Event "Titled Tuesday Blitz March 07 Early 2023"]
[White "Tarasova, Viktoriya"]
[Black "Solovchuk, Oleksiy"]
[WhiteFideId "4175840"]
[BlackFideId "14115220"]
[WhiteElo "2182"]
[BlackElo "2291"]
[Result "0-1"]
[Round "01"]
[TimeControl "180+2"]
[Date "2023.03.07"]
[WhiteClock "0:00:35"]
[BlackClock "0:02:18"]

1. d4 {[%clk 0:02:55]}  Nf6 {[%clk 0:02:59]} 2. c4 {[%clk 0:02:55]}  e6 {[%clk 0:02:59]} 3. Nc3 {[%clk 0:02:55]}  Bb4 {[%clk 0:02:59]} 4. Nf3 {[%clk 0:02:55]}  b6 {[%clk 0:02:59]} 5. e3 {[%clk 0:02:55]}  Bb7 {[%clk 0:02:58]} 6. Bd3 {[%clk 0:02:56]}  c5 {[%clk 0:02:58]} 7. O-O {[%clk 0:02:55]}  O-O {[%clk 0:02:56]} 8. a3 {[%clk 0:02:49]}  Bxc3 {[%clk 0:02:56]} 9. bxc3 {[%clk 0:02:49]}  Nc6 {[%clk 0:02:54]} 10. e4 {[%clk 0:02:46]}  d6 {[%clk 0:02:54]} 11. Bg5 {[%clk 0:02:38]}  h6 {[%clk 0:02:54]} 12. Bh4 {[%clk 0:02:38]}  e5 {[%clk 0:02:53]} 13. d5 {[%clk 0:02:38]}  Na5 {[%clk 0:02:46]} 14. Nd2 {[%clk 0:02:38]}  g5 {[%clk 0:02:45]} 15. Bg3 {[%clk 0:02:38]}  Kg7 {[%clk 0:02:42]} 16. Qe2 {[%clk 0:02:36]}  Bc8 {[%clk 0:02:38]} 17. h3 {[%clk 0:02:36]}  Bd7 {[%clk 0:02:37]} 18. Rab1 {[%clk 0:02:35]}  Rh8 {[%clk 0:02:34]} 19. Nb3 {[%clk 0:02:29]}  Nxb3 {[%clk 0:02:32]} 20. Rxb3 {[%clk 0:02:30]}  Ba4 {[%clk 0:02:32]} 21. Rb2 {[%clk 0:02:29]}  Qd7 {[%clk 0:02:31]} 22. h4 {[%clk 0:02:22]}  Rab8 {[%clk 0:02:29]} 23. Rfb1 {[%clk 0:02:05]}  Kg6 {[%clk 0:02:25]} 24. Bc2 {[%clk 0:01:51]}  Bxc2 {[%clk 0:02:21]} 25. Qxc2 {[%clk 0:01:44]}  Qg4 {[%clk 0:02:20]} 26. hxg5 {[%clk 0:01:21]}  hxg5 {[%clk 0:02:21]} 27. Re1 {[%clk 0:01:14]}  Rh6 {[%clk 0:02:19]} 28. Bh2 {[%clk 0:00:35]}  Qh5 {[%clk 0:02:18]} 0-1


[Site "https://www.chess.com"]

[Event "Titled Tuesday Blitz March 07 Early 2023"]
[White "Tatarinov, Dmitry"]
[Black "Topalov, Aleksandar"]
[WhiteFideId "24160067"]
[BlackFideId "925659"]
[WhiteElo "2326"]
[BlackElo "2151"]
[Result "0-1"]
[Round "01"]
[TimeControl "180+2"]
[Date "2023.03.07"]
[WhiteClock "0:00:12"]
[BlackClock "0:00:11"]

1. e4 {[%clk 0:02:57]}  e6 {[%clk 0:02:59]} 2. d4 {[%clk 0:02:57]}  d5 {[%clk 0:02:59]} 3. Nd2 {[%clk 0:02:57]}  Nf6 {[%clk 0:02:58]} 4. e5 {[%clk 0:02:57]}  Ng8 {[%clk 0:02:58]} 5. f4 {[%clk 0:02:57]}  Ne7 {[%clk 0:02:58]} 6. Ndf3 {[%clk 0:02:58]}  h5 {[%clk 0:02:58]} 7. Bd3 {[%clk 0:02:58]}  g6 {[%clk 0:02:59]} 8. Ne2 {[%clk 0:02:57]}  Qd7 {[%clk 0:02:59]} 9. O-O {[%clk 0:02:58]}  b6 {[%clk 0:02:59]} 10. Be3 {[%clk 0:02:58]}  Ba6 {[%clk 0:02:59]} 11. Bxa6 {[%clk 0:02:58]}  Nxa6 {[%clk 0:02:59]} 12. a4 {[%clk 0:02:58]}  Nf5 {[%clk 0:02:57]} 13. Bf2 {[%clk 0:02:58]}  c5 {[%clk 0:02:55]} 14. a5 {[%clk 0:02:54]}  b5 {[%clk 0:02:55]} 15. dxc5 {[%clk 0:02:53]}  Nxc5 {[%clk 0:02:51]} 16. Ned4 {[%clk 0:02:46]}  Nxd4 {[%clk 0:02:49]} 17. Bxd4 {[%clk 0:02:46]}  a6 {[%clk 0:02:45]} 18. Kh1 {[%clk 0:02:42]}  Rc8 {[%clk 0:02:45]} 19. c3 {[%clk 0:02:41]}  Be7 {[%clk 0:02:45]} 20. g3 {[%clk 0:02:36]}  Ne4 {[%clk 0:02:43]} 21. Nd2 {[%clk 0:02:35]}  Nc5 {[%clk 0:02:35]} 22. Kg2 {[%clk 0:02:29]}  Kf8 {[%clk 0:02:35]} 23. h3 {[%clk 0:02:29]}  Na4 {[%clk 0:02:24]} 24. Rb1 {[%clk 0:02:18]}  Bc5 {[%clk 0:02:23]} 25. Nf3 {[%clk 0:02:16]}  Qc7 {[%clk 0:01:56]} 26. b3 {[%clk 0:02:04]}  Bxd4 {[%clk 0:01:55]} 27. bxa4 {[%clk 0:02:04]}  Bxc3 {[%clk 0:01:53]} 28. axb5 {[%clk 0:02:04]}  axb5 {[%clk 0:01:53]} 29. Rxb5 {[%clk 0:02:04]}  Bxa5 {[%clk 0:01:52]} 30. Qd4 {[%clk 0:01:59]}  Bc3 {[%clk 0:01:47]} 31. Qf2 {[%clk 0:01:54]}  Qc4 {[%clk 0:01:37]} 32. Rb7 {[%clk 0:01:54]}  Kg7 {[%clk 0:01:36]} 33. Ng5 {[%clk 0:01:52]}  Rc7 {[%clk 0:01:20]} 34. Rfb1 {[%clk 0:01:38]}  Rhc8 {[%clk 0:01:16]} 35. g4 {[%clk 0:01:37]}  Bd4 {[%clk 0:01:12]} 36. Qd2 {[%clk 0:00:58]}  hxg4 {[%clk 0:01:07]} 37. hxg4 {[%clk 0:00:58]}  Bxe5 {[%clk 0:01:07]} 38. R1b4 {[%clk 0:00:49]}  Qc2 {[%clk 0:00:48]} 39. Qxc2 {[%clk 0:00:31]}  Rxc2+ {[%clk 0:00:48]} 40. Kf1 {[%clk 0:00:24]}  Bc7 {[%clk 0:00:23]} 41. Ra4 {[%clk 0:00:18]}  Rh8 {[%clk 0:00:16]} 42. Kg1 {[%clk 0:00:18]}  Rh4 {[%clk 0:00:14]} 43. Raa7 {[%clk 0:00:16]}  Rxg4+ {[%clk 0:00:14]} 44. Kh1 {[%clk 0:00:17]}  Rxf4 {[%clk 0:00:13]} 45. Nxe6+ {[%clk 0:00:10]}  fxe6 {[%clk 0:00:12]} 46. Rxc7+ {[%clk 0:00:10]}  Rxc7 {[%clk 0:00:12]} 47. Rxc7+ {[%clk 0:00:11]}  Kf6 {[%clk 0:00:13]} 48. Rc4 {[%clk 0:00:12]}  Rxc4 {[%clk 0:00:11]} 0-1


[Site "https://www.chess.com"]

[Event "Titled Tuesday Blitz March 07 Early 2023"]
[White "Saito, Vinicius"]
[Black "Martinez Ramirez, Lennis"]
[WhiteFideId "2113384"]
[BlackFideId "3509079"]
[WhiteElo "2152"]
[BlackElo "2439"]
[Result "0-1"]
[Round "01"]
[TimeControl "180+2"]
[Date "2023.03.07"]
[WhiteClock "0:01:55"]
[BlackClock "0:02:14"]

1. e4 {[%clk 0:03:00]}  c5 {[%clk 0:02:59]} 2. Nf3 {[%clk 0:03:01]}  d6 {[%clk 0:02:59]} 3. Bb5+ {[%clk 0:03:00]}  Nd7 {[%clk 0:02:59]} 4. d4 {[%clk 0:02:59]}  a6 {[%clk 0:03:00]} 5. Bxd7+ {[%clk 0:02:58]}  Bxd7 {[%clk 0:03:00]} 6. c4 {[%clk 0:02:57]}  cxd4 {[%clk 0:03:00]} 7. Qxd4 {[%clk 0:02:57]}  e5 {[%clk 0:02:56]} 8. Qd3 {[%clk 0:02:56]}  b5 {[%clk 0:02:56]} 9. Nc3 {[%clk 0:02:54]}  Nf6 {[%clk 0:02:39]} 10. O-O {[%clk 0:02:53]}  bxc4 {[%clk 0:02:36]} 11. Qxc4 {[%clk 0:02:53]}  h6 {[%clk 0:02:34]} 12. Rd1 {[%clk 0:02:49]}  Be7 {[%clk 0:02:34]} 13. Qd3 {[%clk 0:02:49]}  O-O {[%clk 0:02:33]} 14. b3 {[%clk 0:02:48]}  Qb6 {[%clk 0:02:25]} 15. h3 {[%clk 0:02:42]}  Rfd8 {[%clk 0:02:22]} 16. Ba3 {[%clk 0:02:27]}  Bc6 {[%clk 0:02:21]} 17. Rac1 {[%clk 0:02:14]}  Qb7 {[%clk 0:02:15]} 18. Nd5 {[%clk 0:02:13]}  Bxd5 {[%clk 0:02:15]} 19. exd5 {[%clk 0:02:13]}  e4 {[%clk 0:02:15]} 20. Rc6 {[%clk 0:01:55]}  exd3 {[%clk 0:02:14]} 0-1


[Site "https://www.chess.com"]

[Event "Titled Tuesday Blitz March 07 Early 2023"]
[White "Oro, Faustino"]
[Black "Alahakoon, Isuru"]
[WhiteFideId "20000197"]
[BlackFideId "9900993"]
[WhiteElo "1984"]
[BlackElo "1995"]
[Result "1-0"]
[Round "01"]
[TimeControl "180+2"]
[Date "2023.03.07"]
[WhiteClock "0:00:21"]
[BlackClock "0:00:05"]

1. e4 {[%clk 0:02:57]}  d5 {[%clk 0:02:59]} 2. exd5 {[%clk 0:02:57]}  Qxd5 {[%clk 0:02:59]} 3. Nc3 {[%clk 0:02:57]}  Qa5 {[%clk 0:02:59]} 4. d4 {[%clk 0:02:56]}  Nf6 {[%clk 0:02:59]} 5. Nf3 {[%clk 0:02:56]}  Bg4 {[%clk 0:02:59]} 6. h3 {[%clk 0:02:50]}  Bh5 {[%clk 0:02:57]} 7. g4 {[%clk 0:02:41]}  Bg6 {[%clk 0:02:57]} 8. Ne5 {[%clk 0:02:41]}  e6 {[%clk 0:02:58]} 9. Bg2 {[%clk 0:02:27]}  c6 {[%clk 0:02:57]} 10. O-O {[%clk 0:02:21]}  Nbd7 {[%clk 0:02:54]} 11. Nxd7 {[%clk 0:02:08]}  Nxd7 {[%clk 0:02:53]} 12. Ne2 {[%clk 0:02:07]}  O-O-O {[%clk 0:02:51]} 13. Nf4 {[%clk 0:02:02]}  Bd6 {[%clk 0:02:41]} 14. c3 {[%clk 0:01:56]}  Qc7 {[%clk 0:02:39]} 15. Nd3 {[%clk 0:01:43]}  e5 {[%clk 0:02:25]} 16. dxe5 {[%clk 0:01:30]}  Nxe5 {[%clk 0:02:12]} 17. Nxe5 {[%clk 0:01:30]}  Bxe5 {[%clk 0:02:13]} 18. Qa4 {[%clk 0:01:30]}  Kb8 {[%clk 0:02:11]} 19. Be3 {[%clk 0:01:29]}  b5 {[%clk 0:01:40]} 20. Qa6 {[%clk 0:01:25]}  Bd3 {[%clk 0:01:00]} 21. Rfd1 {[%clk 0:01:05]}  Rd6 {[%clk 0:00:22]} 22. Bc5 {[%clk 0:00:57]}  Bh2+ {[%clk 0:00:13]} 23. Kxh2 {[%clk 0:00:35]}  Rd5+ {[%clk 0:00:11]} 24. Kg1 {[%clk 0:00:35]}  Rxc5 {[%clk 0:00:09]} 25. Rxd3 {[%clk 0:00:34]}  Re8 {[%clk 0:00:09]} 26. Rad1 {[%clk 0:00:33]}  Rce5 {[%clk 0:00:09]} 27. Re3 {[%clk 0:00:22]}  Rxe3 {[%clk 0:00:07]} 28. fxe3 {[%clk 0:00:23]}  Qg3 {[%clk 0:00:06]} 29. Qxc6 {[%clk 0:00:21]}  Qxe3+ {[%clk 0:00:05]} 30. Kh1 {[%clk 0:00:21]} 1-0


[Site "https://www.chess.com"]

[Event "Titled Tuesday Blitz March 07 Early 2023"]
[White "Logozar, Elijah"]
[Black "Seo, Jung Min"]
[WhiteFideId "30963788"]
[BlackFideId "1734687"]
[WhiteElo "2354"]
[BlackElo "2468"]
[Result "1-0"]
[Round "01"]
[TimeControl "180+2"]
[Date "2023.03.07"]
[WhiteClock "0:01:07"]
[BlackClock "0:00:36"]

1. e4 {[%clk 0:02:35]}  c5 {[%clk 0:02:59]} 2. Nf3 {[%clk 0:02:34]}  e6 {[%clk 0:02:59]} 3. d4 {[%clk 0:02:33]}  cxd4 {[%clk 0:02:56]} 4. Nxd4 {[%clk 0:02:34]}  a6 {[%clk 0:02:56]} 5. c4 {[%clk 0:02:34]}  Nf6 {[%clk 0:02:55]} 6. Nc3 {[%clk 0:02:34]}  Bb4 {[%clk 0:02:55]} 7. Qd3 {[%clk 0:02:32]}  d6 {[%clk 0:02:49]} 8. Nc2 {[%clk 0:02:30]}  Bxc3+ {[%clk 0:02:48]} 9. Qxc3 {[%clk 0:02:31]}  O-O {[%clk 0:02:48]} 10. f3 {[%clk 0:02:31]}  Bd7 {[%clk 0:02:43]} 11. Bf4 {[%clk 0:02:30]}  e5 {[%clk 0:02:43]} 12. Bg5 {[%clk 0:02:28]}  h6 {[%clk 0:02:43]} 13. Be3 {[%clk 0:02:28]}  b5 {[%clk 0:02:42]} 14. Be2 {[%clk 0:02:25]}  bxc4 {[%clk 0:02:40]} 15. Bxc4 {[%clk 0:02:26]}  Bb5 {[%clk 0:02:34]} 16. O-O {[%clk 0:02:24]}  d5 {[%clk 0:02:31]} 17. exd5 {[%clk 0:02:06]}  Nxd5 {[%clk 0:02:30]} 18. Bxd5 {[%clk 0:02:06]}  Qxd5 {[%clk 0:02:30]} 19. Rfd1 {[%clk 0:02:06]}  Qe6 {[%clk 0:02:30]} 20. Nb4 {[%clk 0:01:59]}  Rc8 {[%clk 0:02:24]} 21. Qd2 {[%clk 0:01:59]}  Nc6 {[%clk 0:02:20]} 22. Nxc6 {[%clk 0:01:52]}  Bxc6 {[%clk 0:02:20]} 23. b3 {[%clk 0:01:51]}  e4 {[%clk 0:02:18]} 24. f4 {[%clk 0:01:50]}  a5 {[%clk 0:02:16]} 25. Rac1 {[%clk 0:01:49]}  a4 {[%clk 0:02:12]} 26. b4 {[%clk 0:01:46]}  a3 {[%clk 0:02:08]} 27. Rc5 {[%clk 0:01:42]}  Ba4 {[%clk 0:02:02]} 28. Rdc1 {[%clk 0:01:40]}  Rxc5 {[%clk 0:02:02]} 29. bxc5 {[%clk 0:01:39]}  Bc6 {[%clk 0:02:01]} 30. h3 {[%clk 0:01:38]}  h5 {[%clk 0:02:00]} 31. Rf1 {[%clk 0:01:31]}  Bd5 {[%clk 0:01:55]} 32. f5 {[%clk 0:01:31]}  Qc6 {[%clk 0:01:51]} 33. f6 {[%clk 0:01:31]}  g6 {[%clk 0:01:42]} 34. Bd4 {[%clk 0:01:31]}  Kh7 {[%clk 0:01:42]} 35. Rf5 {[%clk 0:01:21]}  e3 {[%clk 0:01:33]} 36. Qxe3 {[%clk 0:01:17]}  Be4 {[%clk 0:01:21]} 37. Re5 {[%clk 0:01:14]}  Bb1 {[%clk 0:00:54]} 38. Qg5 {[%clk 0:01:08]}  Rd8 {[%clk 0:00:46]} 39. Be3 {[%clk 0:01:07]}  Rd1+ {[%clk 0:00:36]} 40. Kh2 {[%clk 0:01:07]} 1-0


[Site "https://www.chess.com"]

[Event "Titled Tuesday Blitz March 07 Early 2023"]
[White "Starozhilov, Leonid"]
[Black "Sanchez, Robert"]
[WhiteFideId "14106752"]
[BlackFideId "2034360"]
[WhiteElo "2402"]
[BlackElo "2354"]
[Result "1-0"]
[Round "01"]
[TimeControl "180+2"]
[Date "2023.03.07"]
[WhiteClock "0:00:16"]
[BlackClock "0:01:54"]

1. e4 {[%clk 0:02:55]}  e6 {[%clk 0:02:59]} 2. d4 {[%clk 0:02:52]}  d5 {[%clk 0:02:57]} 3. Nc3 {[%clk 0:02:52]}  Nf6 {[%clk 0:02:57]} 4. Bg5 {[%clk 0:02:52]}  Be7 {[%clk 0:02:57]} 5. e5 {[%clk 0:02:52]}  Nfd7 {[%clk 0:02:58]} 6. h4 {[%clk 0:02:52]}  h6 {[%clk 0:02:58]} 7. Bxe7 {[%clk 0:02:51]}  Qxe7 {[%clk 0:02:59]} 8. f4 {[%clk 0:02:52]}  a6 {[%clk 0:02:58]} 9. Nf3 {[%clk 0:02:52]}  c5 {[%clk 0:02:58]} 10. Qd2 {[%clk 0:02:53]}  Nc6 {[%clk 0:02:59]} 11. g4 {[%clk 0:02:51]}  b5 {[%clk 0:02:58]} 12. O-O-O {[%clk 0:02:44]}  c4 {[%clk 0:02:57]} 13. Ne2 {[%clk 0:02:22]}  b4 {[%clk 0:02:56]} 14. c3 {[%clk 0:02:12]}  Rb8 {[%clk 0:02:53]} 15. Rh2 {[%clk 0:02:09]}  Nb6 {[%clk 0:02:53]} 16. Qe1 {[%clk 0:01:18]}  a5 {[%clk 0:02:52]} 17. f5 {[%clk 0:00:56]}  a4 {[%clk 0:02:52]} 18. cxb4 {[%clk 0:00:38]}  Nxb4 {[%clk 0:02:51]} 19. a3 {[%clk 0:00:39]}  Nd3+ {[%clk 0:02:50]} 20. Rxd3 {[%clk 0:00:39]}  cxd3 {[%clk 0:02:51]} 21. Nc3 {[%clk 0:00:39]}  Ba6 {[%clk 0:02:42]} 22. Qd2 {[%clk 0:00:32]}  Nc4 {[%clk 0:02:38]} 23. Qxd3 {[%clk 0:00:32]}  O-O {[%clk 0:02:36]} 24. f6 {[%clk 0:00:32]}  gxf6 {[%clk 0:02:36]} 25. g5 {[%clk 0:00:28]}  fxe5 {[%clk 0:02:33]} 26. Nxe5 {[%clk 0:00:23]}  Rfc8 {[%clk 0:02:20]} 27. Qg3 {[%clk 0:00:22]}  Nxe5 {[%clk 0:02:07]} 28. Bxa6 {[%clk 0:00:20]}  Ng6 {[%clk 0:01:54]} 29. Bxc8 {[%clk 0:00:19]}  Rxc8 {[%clk 0:01:54]} 30. h5 {[%clk 0:00:16]} 1-0


[Site "https://www.chess.com"]

[Event "Titled Tuesday Blitz March 07 Early 2023"]
[White "Prudnykova, Olga"]
[Black "Khripachenko, Alexander"]
[WhiteFideId "14121093"]
[BlackFideId "54184975"]
[WhiteElo "2113"]
[BlackElo "2384"]
[Result "0-1"]
[Round "01"]
[TimeControl "180+2"]
[Date "2023.03.07"]
[WhiteClock "0:01:08"]
[BlackClock "0:01:17"]

1. e4 {[%clk 0:02:57]}  c5 {[%clk 0:02:55]} 2. Nf3 {[%clk 0:02:56]}  e6 {[%clk 0:02:55]} 3. Nc3 {[%clk 0:02:56]}  Nc6 {[%clk 0:02:55]} 4. d4 {[%clk 0:02:57]}  cxd4 {[%clk 0:02:56]} 5. Nxd4 {[%clk 0:02:58]}  Qc7 {[%clk 0:02:57]} 6. Be3 {[%clk 0:02:57]}  Nf6 {[%clk 0:02:50]} 7. Qf3 {[%clk 0:02:36]}  Nxd4 {[%clk 0:02:11]} 8. Bxd4 {[%clk 0:02:35]}  e5 {[%clk 0:02:10]} 9. Qg3 {[%clk 0:02:27]}  d6 {[%clk 0:02:01]} 10. Be3 {[%clk 0:02:27]}  a6 {[%clk 0:01:58]} 11. O-O-O {[%clk 0:02:23]}  Be6 {[%clk 0:01:55]} 12. f4 {[%clk 0:02:22]}  Rc8 {[%clk 0:01:49]} 13. Bd3 {[%clk 0:02:12]}  Nh5 {[%clk 0:01:43]} 14. Qf2 {[%clk 0:02:07]}  Nxf4 {[%clk 0:01:41]} 15. Bxf4 {[%clk 0:02:06]}  exf4 {[%clk 0:01:42]} 16. Qxf4 {[%clk 0:02:07]}  Be7 {[%clk 0:01:41]} 17. Kb1 {[%clk 0:02:06]}  O-O {[%clk 0:01:40]} 18. h4 {[%clk 0:01:58]}  Bf6 {[%clk 0:01:40]} 19. Nd5 {[%clk 0:01:57]}  Bxd5 {[%clk 0:01:38]} 20. exd5 {[%clk 0:01:57]}  Qb6 {[%clk 0:01:39]} 21. b3 {[%clk 0:01:44]}  Be5 {[%clk 0:01:38]} 22. Qe4 {[%clk 0:01:41]}  f5 {[%clk 0:01:36]} 23. Qa4 {[%clk 0:01:36]}  Qc5 {[%clk 0:01:30]} 24. c4 {[%clk 0:01:31]}  Qd4 {[%clk 0:01:26]} 25. Qa3 {[%clk 0:01:20]}  b5 {[%clk 0:01:26]} 26. Rhe1 {[%clk 0:01:08]}  b4 {[%clk 0:01:17]} 0-1


[Site "https://www.chess.com"]

[Event "Titled Tuesday Blitz March 07 Early 2023"]
[White "Vlasak, Lukas"]
[Black "Kozak, Antoni"]
[WhiteFideId "324752"]
[BlackFideId "21832030"]
[WhiteElo "2345"]
[BlackElo "2470"]
[Result "0-1"]
[Round "01"]
[TimeControl "180+2"]
[Date "2023.03.07"]
[WhiteClock "0:00:01"]
[BlackClock "0:00:21"]

1. e4 {[%clk 0:02:59]}  e5 {[%clk 0:02:32]} 2. Nf3 {[%clk 0:02:59]}  Nc6 {[%clk 0:02:32]} 3. Bb5 {[%clk 0:02:58]}  Nf6 {[%clk 0:02:32]} 4. d3 {[%clk 0:02:56]}  d6 {[%clk 0:02:31]} 5. O-O {[%clk 0:02:56]}  Bd7 {[%clk 0:02:31]} 6. c3 {[%clk 0:02:51]}  Be7 {[%clk 0:02:26]} 7. Re1 {[%clk 0:02:50]}  O-O {[%clk 0:02:26]} 8. Nbd2 {[%clk 0:02:50]}  Re8 {[%clk 0:02:20]} 9. Nf1 {[%clk 0:02:49]}  Bf8 {[%clk 0:02:20]} 10. Ng3 {[%clk 0:02:44]}  g6 {[%clk 0:02:12]} 11. h3 {[%clk 0:02:31]}  Bg7 {[%clk 0:02:12]} 12. Bc4 {[%clk 0:02:16]}  Na5 {[%clk 0:02:07]} 13. Bb3 {[%clk 0:02:13]}  Nxb3 {[%clk 0:02:07]} 14. Qxb3 {[%clk 0:02:11]}  b6 {[%clk 0:02:02]} 15. Ng5 {[%clk 0:02:10]}  Qe7 {[%clk 0:01:59]} 16. d4 {[%clk 0:02:05]}  Rad8 {[%clk 0:01:54]} 17. d5 {[%clk 0:01:59]}  h6 {[%clk 0:01:49]} 18. Nf3 {[%clk 0:01:59]}  Nh7 {[%clk 0:01:49]} 19. c4 {[%clk 0:01:56]}  f5 {[%clk 0:01:47]} 20. exf5 {[%clk 0:01:55]}  gxf5 {[%clk 0:01:47]} 21. Nd4 {[%clk 0:01:39]}  Qf7 {[%clk 0:01:45]} 22. Nb5 {[%clk 0:01:34]}  Bxb5 {[%clk 0:01:24]} 23. cxb5 {[%clk 0:01:13]}  Kh8 {[%clk 0:01:10]} 24. Qf3 {[%clk 0:01:00]}  f4 {[%clk 0:01:02]} 25. Nh5 {[%clk 0:00:19]}  Rg8 {[%clk 0:00:50]} 26. h4 {[%clk 0:00:14]}  Rd7 {[%clk 0:00:44]} 27. Bd2 {[%clk 0:00:13]}  Bf6 {[%clk 0:00:40]} 28. Qh3 {[%clk 0:00:09]}  Re7 {[%clk 0:00:36]} 29. Qf5 {[%clk 0:00:07]}  Bxh4 {[%clk 0:00:30]} 30. Qxf7 {[%clk 0:00:07]}  Rxf7 {[%clk 0:00:30]} 31. g3 {[%clk 0:00:03]}  Rf5 {[%clk 0:00:20]} 32. Kh2 {[%clk 0:00:01]}  Rxh5 {[%clk 0:00:20]} 33. gxh4 {[%clk 0:00:01]}  Rxh4# {[%clk 0:00:21]} 0-1


[Site "https://www.chess.com"]

[Event "Titled Tuesday Blitz March 07 Early 2023"]
[White "Mikhaylova, Irina"]
[Black "Lewtak, Damian"]
[WhiteFideId "4109040"]
[BlackFideId "1141724"]
[WhiteElo "1966"]
[BlackElo "2302"]
[Result "0-1"]
[Round "01"]
[TimeControl "180+2"]
[Date "2023.03.07"]
[WhiteClock "0:00:27"]
[BlackClock "0:00:12"]

1. d4 {[%clk 0:02:59]}  d5 {[%clk 0:02:59]} 2. Nf3 {[%clk 0:02:59]}  Nf6 {[%clk 0:02:59]} 3. c4 {[%clk 0:02:59]}  c6 {[%clk 0:03:00]} 4. cxd5 {[%clk 0:02:59]}  cxd5 {[%clk 0:03:01]} 5. Nc3 {[%clk 0:03:00]}  Nc6 {[%clk 0:03:01]} 6. Bf4 {[%clk 0:03:00]}  a6 {[%clk 0:03:01]} 7. Rc1 {[%clk 0:03:00]}  e6 {[%clk 0:02:57]} 8. e3 {[%clk 0:03:00]}  Be7 {[%clk 0:02:57]} 9. Bd3 {[%clk 0:02:59]}  O-O {[%clk 0:02:57]} 10. h3 {[%clk 0:02:57]}  Bd7 {[%clk 0:02:57]} 11. O-O {[%clk 0:02:57]}  Rc8 {[%clk 0:02:56]} 12. Qe2 {[%clk 0:02:57]}  Na5 {[%clk 0:02:32]} 13. Rc2 {[%clk 0:02:50]}  b5 {[%clk 0:02:30]} 14. Rfc1 {[%clk 0:02:49]}  Nc4 {[%clk 0:02:23]} 15. Nb1 {[%clk 0:02:39]}  Qb6 {[%clk 0:02:12]} 16. b3 {[%clk 0:02:16]}  Nd6 {[%clk 0:02:09]} 17. Ne5 {[%clk 0:02:11]}  Qb7 {[%clk 0:01:29]} 18. f3 {[%clk 0:01:40]}  Rxc2 {[%clk 0:01:25]} 19. Rxc2 {[%clk 0:01:40]}  Rc8 {[%clk 0:01:23]} 20. Qd1 {[%clk 0:01:40]}  Be8 {[%clk 0:01:19]} 21. Qc1 {[%clk 0:01:36]}  Rxc2 {[%clk 0:01:11]} 22. Qxc2 {[%clk 0:01:37]}  h6 {[%clk 0:01:09]} 23. g4 {[%clk 0:01:13]}  g5 {[%clk 0:01:07]} 24. Bg3 {[%clk 0:01:12]}  Kg7 {[%clk 0:01:06]} 25. Be1 {[%clk 0:01:06]}  Ng8 {[%clk 0:00:59]} 26. Ba5 {[%clk 0:00:54]}  Nc8 {[%clk 0:00:44]} 27. f4 {[%clk 0:00:44]}  Nf6 {[%clk 0:00:38]} 28. Qc7 {[%clk 0:00:37]}  Qxc7 {[%clk 0:00:36]} 29. Bxc7 {[%clk 0:00:38]}  Nd7 {[%clk 0:00:26]} 30. Nxd7 {[%clk 0:00:38]}  Bxd7 {[%clk 0:00:26]} 31. Kf2 {[%clk 0:00:37]}  Nd6 {[%clk 0:00:23]} 32. Nd2 {[%clk 0:00:34]}  f6 {[%clk 0:00:22]} 33. Kf3 {[%clk 0:00:29]}  Bc6 {[%clk 0:00:22]} 34. Kf2 {[%clk 0:00:26]}  Kf7 {[%clk 0:00:23]} 35. Bb6 {[%clk 0:00:25]}  Ke8 {[%clk 0:00:23]} 36. Bc5 {[%clk 0:00:25]}  Kd7 {[%clk 0:00:24]} 37. Kf3 {[%clk 0:00:25]}  Bd8 {[%clk 0:00:24]} 38. Ke2 {[%clk 0:00:25]}  Nb7 {[%clk 0:00:24]} 39. b4 {[%clk 0:00:23]}  Nd6 {[%clk 0:00:19]} 40. Bxd6 {[%clk 0:00:22]}  Kxd6 {[%clk 0:00:20]} 41. Nb3 {[%clk 0:00:23]}  Bd7 {[%clk 0:00:14]} 42. Nc5 {[%clk 0:00:23]}  Bc8 {[%clk 0:00:14]} 43. e4 {[%clk 0:00:22]}  e5 {[%clk 0:00:13]} 44. fxe5+ {[%clk 0:00:19]}  fxe5 {[%clk 0:00:14]} 45. Ke3 {[%clk 0:00:19]}  exd4+ {[%clk 0:00:13]} 46. Kxd4 {[%clk 0:00:19]}  Bf6+ {[%clk 0:00:12]} 47. Ke3 {[%clk 0:00:20]}  Bc3 {[%clk 0:00:11]} 48. exd5 {[%clk 0:00:20]}  Kxd5 {[%clk 0:00:12]} 49. Be4+ {[%clk 0:00:20]}  Kc4 {[%clk 0:00:11]} 50. Nd3 {[%clk 0:00:20]}  Bxb4 {[%clk 0:00:11]} 51. Ne5+ {[%clk 0:00:21]}  Kc3 {[%clk 0:00:11]} 52. Nc6 {[%clk 0:00:21]}  Bc5+ {[%clk 0:00:11]} 53. Ke2 {[%clk 0:00:21]}  b4 {[%clk 0:00:11]} 54. Ne5 {[%clk 0:00:22]}  a5 {[%clk 0:00:10]} 55. Bd5 {[%clk 0:00:22]}  a4 {[%clk 0:00:10]} 56. Nd3 {[%clk 0:00:22]}  Bd6 {[%clk 0:00:09]} 57. Bf7 {[%clk 0:00:23]}  Ba6 {[%clk 0:00:09]} 58. Ke3 {[%clk 0:00:22]}  Bxd3 {[%clk 0:00:09]} 59. Be6 {[%clk 0:00:23]}  Bc4 {[%clk 0:00:09]} 60. Bd7 {[%clk 0:00:23]}  a3 {[%clk 0:00:09]} 61. Ba4 {[%clk 0:00:23]}  Bxa2 {[%clk 0:00:09]} 62. Bd1 {[%clk 0:00:24]}  Bc4 {[%clk 0:00:10]} 63. Be2 {[%clk 0:00:25]}  a2 {[%clk 0:00:10]} 64. Bf3 {[%clk 0:00:26]}  a1=Q {[%clk 0:00:10]} 65. Be4 {[%clk 0:00:26]}  Qc1+ {[%clk 0:00:11]} 66. Kf3 {[%clk 0:00:27]}  Qf4+ {[%clk 0:00:11]} 67. Kg2 {[%clk 0:00:28]}  Qg3+ {[%clk 0:00:12]} 68. Kh1 {[%clk 0:00:27]}  Qh2# {[%clk 0:00:12]} 0-1


[Site "https://www.chess.com"]